bitfinex/quotes_SOLUSD_20241107
["timestamp","ask_amount","ask_price","bid_price","bid_amount"]
[1730984674443,12.34189137,188.01,187.94,0.2]
[1730984674444,18.71539137,188.02,187.96,12.34189137]
[1730984674751,23.776884,188.01,187.96,12.34189137]
[1730984675926,18.71539137,188.02,187.96,12.34189137]
[1730984676554,12.34189137,188.03,187.97,12.44189137]
[1730984676845,27.85839137,188.06,188.0,12.34189137]
[1730984677234,15.5165,188.06,188.01,12.34189137]
[1730984677440,18.52159137,188.07,188.01,12.34189137]
[1730984677852,12.34189137,188.06,188.0,12.34189137]
[1730984679534,18.52159137,188.07,188.01,12.34189137]
[1730984679756,20.0,188.06,188.01,12.34189137]
[1730984680051,20.0,188.06,188.01,12.44189137]
[1730984680352,36.11877537,188.08,188.02,12.34189137]
[1730984680958,36.11877537,188.08,188.01,12.34189137]
[1730984681162,12.34189137,188.07,188.01,12.44189137]
[1730984681447,12.34189137,188.07,188.01,12.34189137]
[1730984681829,12.34189137,188.07,188.01,12.44189137]
[1730984683435,12.34189137,188.07,187.94,15.513]
[1730984683436,12.34189137,188.05,187.98,0.1]
[1730984683740,12.34189137,188.05,187.99,12.34189137]
[1730984684646,12.34189137,188.04,187.98,12.34189137]
[1730984684858,12.34189137,188.02,187.95,12.34189137]
[1730984685152,12.34189137,187.99,187.93,12.44189137]
[1730984685748,12.34189137,187.99,187.93,12.54189137]
[1730984686559,12.34189137,188.02,187.96,0.1]
[1730984686738,12.34189137,188.02,187.96,12.54189137]
[1730984687851,12.34189137,188.02,187.96,12.44189137]
[1730984688051,12.34189137,188.02,187.96,0.1]
[1730984688552,12.34189137,188.01,187.96,0.1]
[1730984690855,12.34189137,188.02,187.96,0.1]
[1730984691039,12.34189137,188.02,187.96,12.54189137]
[1730984691546,12.34189137,188.02,187.96,12.44189137]
[1730984691744,36.11877537,188.03,187.97,0.1]
[1730984692742,12.34189137,188.02,187.96,12.44189137]
[1730984692952,12.34189137,188.0,187.95,0.1]
[1730984693459,12.34189137,188.0,187.96,0.1]
[1730984693662,12.34189137,188.01,187.96,0.1]
[1730984694462,12.34189137,188.01,187.95,12.34189137]
[1730984695053,12.34189137,188.0,187.94,12.34189137]
[1730984695458,12.34189137,188.0,187.93,12.44189137]
[1730984695644,12.34189137,187.98,187.92,12.54189137]
[1730984695977,12.34189137,187.96,187.9,12.44189137]
[1730984696259,12.34189137,187.96,187.92,0.1]
[1730984696654,12.34189137,187.97,187.92,0.1]
[1730984696963,15.9405,188.01,187.92,12.44189137]
[1730984696964,12.34189137,187.98,187.92,12.44189137]
[1730984697165,36.11877537,187.97,187.92,0.1]
[1730984699043,12.46738137,187.96,187.89,12.44189137]
[1730984699248,12.34189137,187.95,187.89,12.54189137]
[1730984699744,12.34189137,187.95,187.89,12.44189137]
[1730984700244,12.34189137,187.95,187.89,12.34189137]
[1730984700653,12.34189137,187.94,187.88,12.34189137]
[1730984700945,12.46738137,187.96,187.89,12.44189137]
[1730984701148,23.776884,187.95,187.89,12.34189137]
[1730984701449,36.11877537,187.95,187.89,12.34189137]
[1730984701660,12.34189137,187.94,187.88,12.34189137]
[1730984702041,12.34189137,187.93,187.87,12.34189137]
[1730984702246,12.34189137,187.92,187.86,12.34189137]
[1730984702864,23.776884,187.95,187.85,0.1]
[1730984702865,12.34189137,187.91,187.85,12.34189137]
[1730984703075,0.12549,187.94,187.83,0.2]
[1730984703076,12.34189137,187.89,187.83,12.44189137]
[1730984703253,12.34189137,187.89,187.83,12.34189137]
[1730984703647,36.11877537,187.88,187.82,12.90414527]
[1730984704164,12.34189137,187.87,187.82,0.5622539]
[1730984704546,23.776884,187.86,187.82,0.5622539]
[1730984704963,23.776884,187.87,187.82,0.5622539]
[1730984705368,23.776884,187.87,187.82,0.4622539]
[1730984705571,23.776884,187.87,187.82,0.5622539]
[1730984705776,36.11877537,187.87,187.82,0.5622539]
[1730984706443,12.34189137,187.86,187.82,0.5622539]
[1730984706670,12.34189137,187.86,187.82,0.4622539]
[1730984706849,23.776884,187.85,187.82,0.4622539]
[1730984707055,36.24426537,187.83,187.82,0.4622539]
[1730984707454,71.76736537,187.83,187.82,0.4622539]
[1730984712364,71.76736537,187.83,187.82,0.4622539]
[1730984712871,39.425474,187.83,187.82,0.4622539]
[1730984713052,51.76736537,187.83,187.82,0.4622539]
[1730984714077,12.34189137,187.76,187.73,0.1]
[1730984714371,0.12549,187.79,187.73,0.1]
[1730984714372,12.34189137,187.78,187.73,0.1]
[1730984716051,12.34189137,187.77,187.73,0.1]
[1730984716862,12.34189137,187.76,187.7,12.44189137]
[1730984717064,12.34189137,187.76,187.73,0.1]
[1730984717256,12.34189137,187.74,187.68,28.44939137]
[1730984717458,12.34189137,187.74,187.68,28.34939137]
[1730984717678,12.34189137,187.73,187.68,16.0075]
[1730984718275,12.34189137,187.72,187.66,12.34189137]
[1730984718461,12.34189137,187.72,187.65,19.05189137]
[1730984718779,12.34189137,187.71,187.65,12.34189137]
[1730984719474,12.34189137,187.7,187.64,28.38731877]
[1730984719676,12.34189137,187.7,187.64,28.28731877]
[1730984719868,12.34189137,187.69,187.64,15.9454274]
[1730984720268,12.34189137,187.69,187.64,28.28731877]
[1730984720474,12.34189137,187.71,187.65,12.54189137]
[1730984722075,12.34189137,187.71,187.64,28.38731877]
[1730984722281,12.34189137,187.71,187.64,28.28731877]
[1730984722475,12.34189137,187.71,187.65,0.1]
[1730984722675,12.34189137,187.71,187.64,28.28731877]
[1730984722867,23.902374,187.7,187.64,12.91341877]
[1730984723066,36.24426537,187.7,187.64,0.5715274]
[1730984723368,12.34189137,187.69,187.64,0.5715274]
[1730984723880,12.34189137,187.68,187.64,0.5715274]
[1730984724764,12.34189137,187.69,187.64,0.5715274]
[1730984726582,12.34189137,187.68,187.64,0.5715274]
[1730984726785,12.34189137,187.67,187.64,0.5715274]
[1730984726967,12.34189137,187.68,187.64,0.5715274]
[1730984727170,36.24426537,187.67,187.64,0.5715274]
[1730984727469,36.24426537,187.65,187.64,0.5715274]
[1730984729862,15.1855,187.72,187.64,0.5715274]
[1730984730067,12.34189137,187.67,187.64,0.5715274]
[1730984730475,0.12549,187.67,187.64,0.5715274]
[1730984730676,12.46738137,187.67,187.64,0.5715274]
[1730984731681,0.12549,187.65,187.64,0.5715274]
[1730984732861,12.34189137,187.68,187.64,0.5715274]
[1730984733068,23.776884,187.67,187.64,0.5715274]
[1730984733283,12.34189137,187.7,187.64,0.5715274]
[1730984734197,12.34189137,187.69,187.64,0.5715274]
[1730984734786,12.34189137,187.68,187.64,0.5715274]
[1730984735774,23.902374,187.69,187.64,12.91341877]
[1730984735971,12.46738137,187.71,187.64,13.01341877]
[1730984735972,23.776884,187.7,187.64,13.01341877]
[1730984736891,12.34189137,187.71,187.65,12.44189137]
[1730984737193,12.34189137,187.71,187.66,0.1]
[1730984738283,36.11877537,187.69,187.64,0.5715274]
[1730984738596,12.34189137,187.69,187.64,0.5715274]
[1730984739386,23.902374,187.68,187.64,0.5715274]
[1730984739591,12.34189137,187.69,187.64,0.5715274]
[1730984739896,12.34189137,187.69,187.64,0.6715274]
[1730984740094,12.34189137,187.69,187.64,0.5715274]
[1730984740478,12.34189137,187.7,187.64,12.91341877]
[1730984740678,12.34189137,187.72,187.66,12.44189137]
[1730984740896,12.34189137,187.72,187.66,12.34189137]
[1730984741773,12.34189137,187.71,187.65,12.44189137]
[1730984742182,12.34189137,187.71,187.64,13.01341877]
[1730984742582,23.902374,187.7,187.64,12.91341877]
[1730984742793,36.24426537,187.7,187.64,12.91341877]
[1730984743377,12.34189137,187.69,187.64,0.5715274]
[1730984744778,36.24426537,187.68,187.64,0.5715274]
[1730984745373,36.24426537,187.66,187.64,0.5715274]
[1730984746603,36.24426537,187.65,187.64,0.5715274]
[1730984748072,56.24426537,187.65,187.64,0.5715274]
[1730984749000,61.57326537,187.65,187.64,0.5715274]
[1730984749577,56.24426537,187.65,187.64,0.5715274]
[1730984751404,51.83545607,187.65,187.64,0.5715274]
[1730984755698,31.83545607,187.65,187.64,0.5715274]
[1730984755903,23.902374,187.65,187.64,0.5715274]
[1730984756091,31.83545607,187.65,187.64,0.5715274]
[1730984756287,8.05857207,187.65,187.64,0.5715274]
[1730984757586,31.83545607,187.65,187.64,0.5715274]
[1730984760389,51.83545607,187.65,187.64,0.5715274]
[1730984761293,57.16445607,187.65,187.64,0.5715274]
[1730984762280,51.83545607,187.65,187.64,0.5715274]
[1730984764685,27.93308207,187.65,187.64,0.5715274]
[1730984765507,20.0,187.68,187.64,0.5715274]
[1730984765709,8.05857207,187.65,187.64,0.5715274]
[1730984766613,31.83545607,187.65,187.64,0.5715274]
[1730984767105,7.93308207,187.7,187.64,8.50460947]
[1730984767314,158.4,187.75,187.66,0.1]
[1730984767486,7.93308207,187.73,187.67,8.03308207]
[1730984767691,8.05857207,187.72,187.67,0.1]
[1730984768199,7.93308207,187.72,187.67,0.1]
[1730984768995,0.12549,187.71,187.67,0.1]
[1730984769407,23.776884,187.71,187.67,0.1]
[1730984769608,36.16062177,187.71,187.67,0.1]
[1730984770288,12.38373777,187.73,187.68,0.1]
[1730984770510,158.4,187.75,187.64,0.5715274]
[1730984770511,12.38373777,187.76,187.7,12.48373777]
[1730984770715,158.4,187.81,187.71,0.1]
[1730984770914,12.38373777,187.77,187.71,0.1]
[1730984771101,0.12549,187.74,187.69,15.1692]
[1730984771297,0.12549,187.74,187.69,15.0692]
[1730984771492,0.12549,187.74,187.69,15.1692]
[1730984771809,12.50922777,187.74,187.69,15.0692]
[1730984772000,0.12549,187.73,187.67,12.38373777]
[1730984772202,12.50922777,187.73,187.67,12.48373777]
[1730984772408,23.776884,187.72,187.67,12.38373777]
[1730984772794,23.776884,187.72,187.67,12.48373777]
[1730984772995,0.12549,187.71,187.67,12.38373777]
[1730984773210,0.12549,187.71,187.66,12.48373777]
[1730984773403,0.12549,187.71,187.66,12.38373777]
[1730984773797,12.50922777,187.71,187.66,0.1]
[1730984774005,12.50922777,187.71,187.65,12.38373777]
[1730984774006,12.50922777,187.71,187.65,12.48373777]
[1730984774313,0.12549,187.69,187.65,12.38373777]
[1730984774618,23.776884,187.74,187.68,12.48373777]
[1730984774793,23.776884,187.74,187.69,12.38373777]
[1730984775300,0.12549,187.73,187.68,12.48373777]
[1730984776014,0.12549,187.73,187.7,12.38373777]
[1730984776196,0.12549,187.73,187.68,0.1]
[1730984776197,0.12549,187.73,187.69,12.38373777]
[1730984776396,0.12549,187.73,187.68,12.48373777]
[1730984777100,12.38373777,187.76,187.7,12.38373777]
[1730984777607,12.38373777,187.76,187.71,0.1]
[1730984777815,12.38373777,187.76,187.7,12.48373777]
[1730984778027,12.38373777,187.75,187.7,0.1]
[1730984778321,12.38373777,187.75,187.69,12.48373777]
[1730984781822,36.28611177,187.74,187.67,12.48373777]
[1730984782020,36.28611177,187.74,187.67,12.38373777]
[1730984782227,12.38373777,187.73,187.67,12.38373777]
[1730984783019,12.38373777,187.73,187.69,0.1]
[1730984783418,36.28611177,187.74,187.69,0.1]
[1730984783819,36.28611177,187.74,187.68,12.38373777]
[1730984784726,36.28611177,187.74,187.67,12.38373777]
[1730984785023,12.38373777,187.72,187.66,12.38373777]
[1730984785409,23.902374,187.71,187.65,12.48373777]
[1730984785607,23.902374,187.71,187.65,12.38373777]
[1730984785928,36.28611177,187.71,187.65,12.38373777]
[1730984786309,36.28611177,187.71,187.64,28.69496517]
[1730984786310,12.38373777,187.7,187.64,28.69496517]
[1730984786519,36.28611177,187.69,187.64,16.3112274]
[1730984786731,36.28611177,187.69,187.64,0.6715274]
[1730984787409,36.28611177,187.69,187.64,0.5715274]
[1730984787730,23.902374,187.67,187.64,0.5715274]
[1730984788211,23.902374,187.68,187.64,0.5715274]
[1730984789327,23.902374,187.69,187.64,0.6715274]
[1730984789911,31.83012498,187.69,187.64,0.6715274]
[1730984794415,0.12549,187.67,187.64,0.6715274]
[1730984794614,23.902374,187.67,187.64,0.6715274]
[1730984795347,23.902374,187.68,187.64,0.6715274]
[1730984795719,7.92775098,187.66,187.64,0.5715274]
[1730984796641,23.902374,187.66,187.64,0.5715274]
[1730984799031,7.92775098,187.67,187.64,0.5715274]
[1730984799724,0.12549,187.67,187.64,0.5715274]
[1730984799917,23.902374,187.67,187.64,0.5715274]
[1730984802364,31.83012498,187.67,187.64,0.5715274]
[1730984802840,31.70463498,187.67,187.64,0.5715274]
[1730984804226,7.92775098,187.66,187.64,0.5715274]
[1730984804539,23.776884,187.65,187.64,0.5715274]
[1730984805338,23.902374,187.65,187.64,0.5715274]
[1730984805650,31.83012498,187.65,187.64,0.5715274]
[1730984810335,23.902374,187.65,187.64,0.5715274]
[1730984810522,31.83012498,187.65,187.64,0.5715274]
[1730984810722,7.92775098,187.66,187.64,0.5715274]
[1730984811222,7.92775098,187.67,187.64,0.5715274]
[1730984811427,7.92775098,187.66,187.64,0.5715274]
[1730984812046,158.4,187.69,187.64,0.5715274]
[1730984812047,0.12549,187.68,187.64,0.6715274]
[1730984812552,158.4,187.72,187.66,7.92775098]
[1730984812758,7.92775098,187.73,187.67,8.02775098]
[1730984813041,7.92775098,187.74,187.69,0.1]
[1730984813443,7.92775098,187.73,187.69,0.1]
[1730984813656,7.92775098,187.72,187.67,0.1]
[1730984813829,7.92775098,187.72,187.69,0.1]
[1730984814024,23.776884,187.72,187.67,8.02775098]
[1730984814350,31.70463498,187.72,187.68,0.1]
[1730984814533,7.92775098,187.71,187.66,0.1]
[1730984814733,7.92775098,187.71,187.65,8.02775098]
[1730984815949,7.92775098,187.71,187.64,16.6541274]
[1730984815950,7.92775098,187.7,187.64,24.58187838]
[1730984816131,7.92775098,187.69,187.64,16.5541274]
[1730984816545,23.776884,187.67,187.64,0.5715274]
[1730984816958,23.776884,187.67,187.64,0.6715274]
[1730984817447,23.902374,187.68,187.64,0.6715274]
[1730984817950,31.83012498,187.68,187.64,0.6715274]
[1730984818324,158.4,187.71,187.64,8.69927838]
[1730984818524,23.776884,187.69,187.65,0.1]
[1730984818946,7.92775098,187.71,187.65,8.12775098]
[1730984819135,7.92775098,187.72,187.68,0.1]
[1730984820533,7.92775098,187.73,187.68,0.1]
[1730984820854,23.776884,187.72,187.68,0.1]
[1730984822959,31.70463498,187.72,187.68,0.1]
[1730984823738,7.92775098,187.76,187.7,8.02775098]
[1730984823950,7.92775098,187.75,187.7,0.1]
[1730984824266,7.92775098,187.75,187.7,0.2]
[1730984824953,7.92775098,187.75,187.71,0.1]
[1730984825169,7.92775098,187.77,187.73,0.1]
[1730984825458,7.92775098,187.78,187.73,0.2]
[1730984826558,7.92775098,187.77,187.73,0.2]
[1730984827457,7.92775098,187.77,187.73,0.1]
[1730984827854,7.92775098,187.77,187.73,0.2]
[1730984828159,7.92775098,187.76,187.7,0.2]
[1730984828352,7.92775098,187.76,187.7,0.1]
[1730984828539,7.92775098,187.76,187.72,0.1]
[1730984828741,7.92775098,187.76,187.7,0.1]
[1730984829260,7.92775098,187.75,187.69,8.12775098]
[1730984829564,7.92775098,187.75,187.7,0.1]
[1730984829752,7.92775098,187.75,187.69,8.12775098]
[1730984830153,7.92775098,187.75,187.69,8.02775098]
[1730984830361,31.70463498,187.74,187.69,0.2]
[1730984830764,31.70463498,187.74,187.71,0.1]
[1730984830955,23.776884,187.74,187.69,8.02775098]
[1730984831154,7.92775098,187.73,187.68,16.494]
[1730984831549,7.92775098,187.73,187.67,8.02775098]
[1730984831755,7.92775098,187.72,187.66,8.02775098]
[1730984832072,7.92775098,187.71,187.65,8.12775098]
[1730984832371,7.92775098,187.71,187.67,0.1]
[1730984832753,7.92775098,187.71,187.66,0.1]
[1730984833343,7.92775098,187.71,187.65,8.12775098]
[1730984833665,7.92775098,187.7,187.64,0.5715274]
[1730984833867,0.12549,187.73,187.64,0.5715274]
[1730984833868,31.70463498,187.68,187.64,0.5715274]
[1730984834041,7.92775098,187.67,187.64,0.5715274]
[1730984835564,31.70463498,187.68,187.64,0.5715274]
[1730984837358,7.92775098,187.67,187.64,0.5715274]
[1730984838568,31.70463498,187.66,187.64,0.5715274]
[1730984840655,23.776884,187.66,187.64,0.5715274]
[1730984840865,7.92775098,187.68,187.64,0.5715274]
[1730984841054,23.776884,187.69,187.64,8.69927838]
[1730984841255,166.32775098,187.7,187.64,8.69927838]
[1730984842148,158.4,187.7,187.65,0.2]
[1730984842347,7.92775098,187.71,187.67,0.1]
[1730984844150,7.92775098,187.71,187.68,0.1]
[1730984844371,7.92775098,187.71,187.67,0.1]
[1730984844884,31.70463498,187.7,187.65,0.1]
[1730984845249,7.92775098,187.68,187.64,0.5715274]
[1730984845450,7.92775098,187.67,187.64,0.5715274]
[1730984845758,7.92775098,187.67,187.64,0.6715274]
[1730984846573,7.92775098,187.67,187.64,0.5715274]
[1730984846964,23.776884,187.67,187.64,0.6715274]
[1730984847476,23.776884,187.68,187.65,0.1]
[1730984847971,31.70463498,187.68,187.65,0.1]
[1730984848976,31.70463498,187.68,187.64,0.5715274]
[1730984849168,31.70463498,187.68,187.65,0.1]
[1730984849776,23.776884,187.68,187.65,0.1]
[1730984849977,158.4,187.71,187.67,0.2]
[1730984850281,7.92775098,187.72,187.68,0.1]
[1730984850478,7.92775098,187.72,187.69,0.1]
[1730984850784,7.92775098,187.73,187.69,0.1]
[1730984850956,7.92775098,187.73,187.7,0.1]
[1730984852171,23.776884,187.72,187.7,0.1]
[1730984854587,7.92775098,187.75,187.71,0.2]
[1730984857267,23.776884,187.78,187.74,0.1]
[1730984857468,7.92775098,187.77,187.74,0.2]
[1730984857655,7.92775098,187.75,187.71,0.2]
[1730984857876,7.92775098,187.75,187.72,0.1]
[1730984858474,7.92775098,187.74,187.7,0.1]
[1730984858682,7.92775098,187.73,187.71,0.1]
[1730984858867,7.92775098,187.73,187.69,0.2]
[1730984859382,7.92775098,187.73,187.68,0.2]
[1730984859583,7.92775098,187.72,187.68,0.1]
[1730984859759,5.45119,187.77,187.67,0.1]
[1730984859760,7.92775098,187.71,187.67,0.1]
[1730984859959,7.92775098,187.71,187.68,0.1]
[1730984860160,7.92775098,187.71,187.67,0.1]
[1730984860582,5.45119,187.77,187.65,0.2]
[1730984860583,7.92775098,187.7,187.65,0.2]
[1730984860781,7.92775098,187.7,187.66,0.2]
[1730984861171,7.92775098,187.7,187.67,0.1]
[1730984861373,7.92775098,187.7,187.64,8.49927838]
[1730984861374,7.92775098,187.69,187.65,0.2]
[1730984861877,7.92775098,187.69,187.65,0.1]
[1730984862083,7.92775098,187.69,187.64,0.7715274]
[1730984862479,7.92775098,187.67,187.64,0.5715274]
[1730984863477,7.92775098,187.67,187.65,0.1]
[1730984864264,7.92775098,187.67,187.64,0.6715274]
[1730984865269,7.92775098,187.67,187.64,0.5715274]
[1730984865470,23.776884,187.66,187.64,0.5715274]
[1730984866166,23.776884,187.66,187.64,0.6715274]
[1730984866672,23.776884,187.66,187.64,0.5715274]
[1730984866892,23.776884,187.66,187.65,0.1]
[1730984867370,23.776884,187.66,187.64,0.5715274]
[1730984867573,23.776884,187.66,187.65,0.1]
[1730984867788,7.92775098,187.7,187.65,0.2]
[1730984867990,23.776884,187.69,187.66,0.1]
[1730984868672,31.70463498,187.69,187.66,0.1]
[1730984868871,31.70463498,187.69,187.65,0.2]
[1730984869474,31.70463498,187.69,187.66,0.1]
[1730984870378,31.70463498,187.69,187.65,0.1]
[1730984870579,31.70463498,187.69,187.65,0.2]
[1730984870878,31.70463498,187.69,187.66,0.1]
[1730984871490,0.12549,187.68,187.66,0.1]
[1730984871788,23.776884,187.67,187.64,0.5715274]
[1730984872087,7.92775098,187.66,187.64,0.5715274]
[1730984872284,23.776884,187.67,187.64,0.6715274]
[1730984872485,23.776884,187.67,187.64,0.5715274]
[1730984872675,23.776884,187.67,187.64,0.6715274]
[1730984872879,23.776884,187.67,187.65,0.1]
[1730984873393,23.776884,187.67,187.64,0.6715274]
[1730984873586,31.70463498,187.67,187.64,0.5715274]
[1730984873901,7.92775098,187.66,187.64,0.5715274]
[1730984874191,23.776884,187.65,187.64,0.5715274]
[1730984879095,23.776884,187.65,187.64,0.6715274]
[1730984879303,53.38422498,187.65,187.54,0.1]
[1730984879477,31.70463498,187.56,187.54,0.2]
[1730984879675,7.92775098,187.56,187.54,0.1]
[1730984879979,23.776884,187.62,187.56,0.1]
[1730984880179,7.92775098,187.57,187.56,0.2]
[1730984880385,0.12549,187.61,187.56,0.2]
[1730984880995,0.12549,187.61,187.56,0.1]
[1730984881301,12.40424615,187.57,187.56,0.1]
[1730984881680,12.40424615,187.57,187.55,0.2]
[1730984881878,12.40424615,187.56,187.55,0.2]
[1730984882278,12.40424615,187.56,187.55,0.1]
[1730984882482,12.40424615,187.56,187.55,0.2]
[1730984882780,36.18113015,187.56,187.55,0.1]
[1730984883180,36.18113015,187.56,187.54,0.2]
[1730984883371,36.18113015,187.56,187.55,0.1]
[1730984884692,12.40424615,187.58,187.57,0.1]
[1730984884903,12.40424615,187.59,187.58,0.2]
[1730984885394,12.40424615,187.59,187.58,0.1]
[1730984885698,12.40424615,187.59,187.56,0.1]
[1730984885887,12.40424615,187.58,187.57,0.1]
[1730984886274,23.776884,187.57,187.56,0.1]
[1730984888397,12.40424615,187.6,187.59,0.1]
[1730984888697,36.18113015,187.6,187.59,0.1]
[1730984890990,23.776884,187.59,187.58,0.1]
[1730984891193,36.18113015,187.59,187.58,0.1]
[1730984893502,23.776884,187.59,187.58,0.1]
[1730984893689,158.4,187.68,187.64,0.1]
[1730984893889,12.40424615,187.69,187.65,0.1]
[1730984894092,12.40424615,187.69,187.66,0.1]
[1730984894801,0.12549,187.71,187.66,0.1]
[1730984895006,0.12549,187.69,187.67,0.1]
[1730984895208,23.902374,187.69,187.67,0.1]
[1730984895379,12.40424615,187.7,187.67,0.1]
[1730984895586,12.40424615,187.71,187.68,0.1]
[1730984896908,12.40424615,187.7,187.67,0.1]
[1730984897088,12.40424615,187.7,187.68,0.1]
[1730984897292,12.40424615,187.71,187.68,0.1]
[1730984897692,36.18113015,187.7,187.68,0.1]
[1730984897889,23.776884,187.68,187.64,0.2]
[1730984898102,36.18113015,187.66,187.65,0.1]
[1730984898309,23.776884,187.66,187.65,0.2]
[1730984898589,12.40424615,187.66,187.63,0.1]
[1730984898818,0.12549,187.68,187.64,0.2]
[1730984899110,12.40424615,187.66,187.63,0.1]
[1730984899314,12.40424615,187.65,187.63,0.1]
[1730984899689,12.40424615,187.65,187.63,0.2]
[1730984900312,12.40424615,187.65,187.63,0.1]
[1730984900610,12.40424615,187.65,187.63,0.2]
[1730984900793,12.40424615,187.66,187.64,0.1]
[1730984900992,23.776884,187.65,187.64,0.2]
[1730984901201,36.18113015,187.65,187.63,0.1]
[1730984901404,36.18113015,187.64,187.63,0.2]
[1730984901915,23.776884,187.64,187.63,0.2]
[1730984902297,36.18113015,187.64,187.62,0.2]
[1730984902613,36.18113015,187.64,187.62,0.1]
[1730984902795,36.18113015,187.64,187.62,0.2]
[1730984903313,36.18113015,187.64,187.61,0.2]
[1730984904293,36.18113015,187.64,187.61,0.1]
[1730984904497,12.40424615,187.63,187.61,0.1]
[1730984905313,12.40424615,187.63,187.61,0.2]
[1730984905511,12.40424615,187.63,187.61,0.1]
[1730984905823,36.18113015,187.62,187.6,0.1]
[1730984906216,36.18113015,187.62,187.6,0.2]
[1730984906392,23.776884,187.62,187.6,0.2]
[1730984907615,23.776884,187.62,187.61,0.1]
[1730984908793,0.12549,187.68,187.64,0.2]
[1730984908993,7.93344124,187.66,187.64,0.2]
[1730984909194,7.93344124,187.67,187.66,0.1]
[1730984909496,7.93344124,187.67,187.66,0.2]
[1730984910292,16.5874,187.74,187.69,0.1]
[1730984910496,7.93344124,187.7,187.69,0.1]
[1730984911310,12.3879126,187.7,187.68,0.2]
[1730984911514,12.3879126,187.69,187.68,0.2]
[1730984911720,12.3879126,187.69,187.68,0.1]
[1730984911721,36.1647966,187.69,187.68,0.1]
[1730984911915,23.776884,187.68,187.66,0.1]
[1730984912225,36.1647966,187.67,187.66,0.1]
[1730984913011,23.776884,187.66,187.65,0.1]
[1730984913196,23.776884,187.66,187.65,0.2]
[1730984913818,23.776884,187.66,187.65,0.1]
[1730984914518,12.5134026,187.68,187.67,0.1]
[1730984914720,36.2902866,187.68,187.66,0.1]
[1730984914922,23.776884,187.67,187.66,0.2]
[1730984916424,36.1647966,187.67,187.65,0.2]
[1730984916723,36.1647966,187.66,187.65,0.2]
[1730984917024,23.902374,187.65,187.64,0.1]
[1730984917197,23.902374,187.65,187.58,12.3879126]
[1730984917198,36.2902866,187.65,187.62,0.2]
[1730984917394,36.2902866,187.65,187.63,0.1]
[1730984917597,36.2902866,187.65,187.64,0.1]
[1730984918194,36.2902866,187.65,187.62,0.2]
[1730984918421,36.2902866,187.65,187.64,0.1]
[1730984919401,23.776884,187.65,187.64,0.2]
[1730984920419,12.3879126,187.68,187.67,0.1]
[1730984920632,36.2902866,187.68,187.67,0.1]
[1730984924006,36.1647966,187.68,187.67,0.2]
[1730984924221,12.3879126,187.69,187.68,0.1]
[1730984924527,36.1647966,187.69,187.68,0.1]
[1730984924737,23.776884,187.69,187.68,0.1]
[1730984925025,36.1647966,187.69,187.68,0.1]
[1730984926220,36.1647966,187.69,187.67,0.1]
[1730984926413,12.3879126,187.68,187.67,0.2]
[1730984927461,36.1647966,187.68,187.66,0.1]
[1730984927617,12.3879126,187.67,187.66,0.1]
[1730984928111,12.3879126,187.67,187.65,0.1]
[1730984928112,36.1647966,187.67,187.65,0.1]
[1730984928319,12.3879126,187.66,187.65,0.1]
[1730984928715,12.3879126,187.66,187.64,0.1]
[1730984928912,23.776884,187.69,187.64,0.1]
[1730984928913,12.3879126,187.65,187.64,0.1]
[1730984929106,36.1647966,187.65,187.64,0.1]
[1730984929306,36.1647966,187.65,187.63,0.1]
[1730984929507,36.1647966,187.64,187.63,0.1]
[1730984931328,23.776884,187.64,187.63,0.1]
[1730984931521,23.776884,187.64,187.62,0.1]
[1730984932120,23.776884,187.64,187.63,0.1]
[1730984932325,23.776884,187.64,187.63,0.2]
[1730984933520,23.776884,187.64,187.62,0.2]
[1730984933921,23.776884,187.64,187.63,0.1]
[1730984934129,23.776884,187.64,187.63,0.2]
[1730984936235,7.93174175,187.67,187.64,0.1]
[1730984936634,23.776884,187.65,187.64,0.1]
[1730984937323,23.776884,187.65,187.64,0.2]
[1730984947044,23.776884,187.65,187.64,0.1]
[1730984947924,31.70862575,187.65,187.63,0.2]
[1730984948131,7.93174175,187.64,187.63,0.2]
[1730984948342,31.70862575,187.64,187.63,0.2]